Cogmind - Beta 15 @@@ ROGUE MODE // 2025.05.26 @ 20:48:12 Player: G4-R3D Result: Destroyed by as-41703 with Assembled Rifle Performance ------------- Evolutions (0) 0 Regions Visited (2) 400 Robots Destroyed (17) 85 Value Destroyed (314) 314 Prototype IDs (0) 0 Alien Tech Used (0) 0 Bonus (0) 0 TOTAL SCORE: 799 Bonus ------- None Cogmind --------- Core Integrity 0/250 Matter 300/300 Energy 99/100 System Corruption 9% Temperature Cool (20) Movement Core (50) Location -10/Mines Parts ------- > --- POWER (1) -------- (None) > --- PROPULSION (2) --- (None) > --- UTILITY (2) ------ (None) > --- WEAPON (2) ------- (None) > --- INVENTORY (5) ---- Ion Engine Hacking Suite Light Assault Rifle Light Cannon Bore Cannon Peak State ------------ > --- POWER ------------ Ion Engine > --- PROPULSION ------- Light Treads Light Treads > --- UTILITY ---------- Large Storage Unit Seismic Detector > --- WEAPON ----------- Assault Rifle Assault Rifle > --- INVENTORY -------- Ion Engine Ion Engine Targeting Computer Hacking Suite Assault Rifle Light Assault Rifle Light Cannon Light Cannon [Rating: 8] Favorites ----------- Power Ion Engine Engine Ion Engine Propulsion Light Treads Treads Light Treads Utility Seismic Detector Device Seismic Detector Storage Large Storage Unit Processor Targeting Computer Weapon Assault Rifle Ballistic Gun Assault Rifle Build | -11 -10 -10 ------- Run | Yrd Mat Min Slots Evolved . | . . . Power . | . . . Propulsion . | . . . Utility . | . . . Weapon . | . . . Parts Attached 11 | 7 3 1 Power 2 | 1 1 . Engine 2 | 1 1 . Core . | . . . Reactor . | . . . Propulsion 2 | 2 . . Treads 2 | 2 . . Leg . | . . . Wheel . | . . . Hover . | . . . Flight . | . . . Utility 4 | 2 1 1 Device 1 | 1 . . Storage 2 | 1 1 . Processor 1 | . . 1 Hackware . | . . . Protection . | . . . Artifact . | . . . Weapon 3 | 2 1 . Energy Gun . | . . . Energy Cannon . | . . . Ballistic Gun 3 | 2 1 . Ballistic Cannon . | . . . Launcher . | . . . Special Weapon . | . . . Impact Weapon . | . . . Slashing Weapon . | . . . Piercing Weapon . | . . . Special Melee Weapon . | . . . Unidentified Prototypes . | . . . Parts Lost 3 | . . 3 Power 1 | . . 1 Propulsion 1 | . . 1 Utility 1 | . . 1 Weapon . | . . . Highest Loss Streak 3 | . . 3 To Critical Strikes . | . . . Average Backups 3 | . 3 8 Power 1 | . 1 1 Propulsion . | . . . Utility . | . . 1 Weapon 1 | . 1 4 Tool/Special . | . . . Unused Backups 6 | . . 6 Power 1 | . . 1 Propulsion . | . . . Utility 1 | . . 1 Weapon 4 | . . 4 Tool/Special . | . . . Average Slot Usage (%) 98 | . 100 92 Engine 13 | . 14 10 Treads 27 | . 28 24 Device 13 | . 14 10 Storage 14 | . 14 14 Ballistic Gun 28 | . 28 28 Peak Build Rating 8 | 7 8 8 Average Rating 6 | 5 7 6 On Entrance 5 | . 7 8 Naked Turns 6 | . . 6 Heaviest Build 30 | 14 30 30 Greatest Support 40 | 40 40 40 Greatest Overweight (x) 1 | . . 1 Average Overweight (x) . | . . . Largest Inventory Capacity 15 | 8 15 15 Average Capacity 13 | 7 14 14 Most Carried 9 | 1 8 9 Average Carried 3 | . 3 8 Final Capacity 15 | 8 15 5 Final Carried 8 | 1 8 5 Class Distribution -------------------- 100% | Mutant Dominant Class ---------------- Mutant | -10/Materials Mutant | -10/Mines Resources | -11 -10 -10 ----------- Run | Yrd Mat Min Matter Collected 503 | 310 186 7 Remotely . | . . . Salvage Created 520 | 132 388 . Parts 39 | 8 31 . Haulers Intercepted . | . . . Recyclers Shooed . | . . . Parts Field Recycled . | . . . Retrieved Matter . | . . . Parts Self-Destructed . | . . . Prevented . | . . . Kills | -11 -10 -10 ------- Run | Yrd Mat Min Combat Hostiles Destroyed 9 | . 9 . Guns 9 | . 9 . Classes Destroyed 7 | 2 5 . Worker 1 | . 1 . Tunneler 4 | 2 2 . Recycler 1 | 1 . . Operator 1 | . 1 . Watcher 1 | . 1 . Swarmer 3 | . 3 . Grunt 6 | . 6 . Best Kill Streak 5 | 2 5 . Combat Bots Only 3 | . 3 . Max Kills in Single Turn 1 | 1 1 . Gunslinging . | . . . Exploded . | . . . Melee . | . . . Uniques/NPCs Destroyed . | . . . Combat | -11 -10 -10 -------- Run | Yrd Mat Min Hostile Shots Fired 70 | . 35 35 Missed 23 | . 11 12 Hits 47 | . 24 23 Melee 10 | . . 10 Projectile 37 | . 24 13 Critical Strikes 1 | . . 1 Part Disruptions 1 | . . 1 Damage Taken 687 | . 280 407 Core 252 | . 65 187 Absorbed by Shields . | . . . Core Remaining (%) 100 | 100 . . Volleys Fired 45 | 10 33 2 Largest 2 | 2 2 2 Hottest 40 | 40 40 40 Shots Fired 90 | 20 66 4 Gun 90 | 20 66 4 Cannon . | . . . Launcher . | . . . Special . | . . . Kinetic 90 | 20 66 4 Thermal . | . . . Explosive . | . . . Electromagnetic . | . . . Robot Hit Streak 7 | 3 7 2 Robot Miss Streak 3 | 3 3 1 Penetration Max . | . . . Secondary Targets 2 | . 2 . Max Gunslinging Chain 1 | . 1 . Shots Hit Robots 59 | 10 47 2 Core Hits 26 | 4 21 1 Critical Kills . | . . . Critical Parts Destroyed 1 | . 1 . Critical Strikes 1 | . 1 . Destroy 1 | . 1 . Melee Attacks . | . . . Impact . | . . . Slashing . | . . . Piercing . | . . . Sneak Attacks . | . . . Combat Hostiles . | . . . Follow-up Attacks . | . . . Damage Inflicted 702 | 106 572 24 Guns 699 | 106 569 24 Cannons . | . . . Explosions . | . . . Melee . | . . . Ramming 3 | . 3 . Kinetic 699 | 106 569 24 Thermal . | . . . Explosive . | . . . Electromagnetic . | . . . Impact . | . . . Slashing . | . . . Piercing . | . . . Highest Corruption 9 | . . 9 Average Corruption 7 | . . 7 Corruption Purged . | . . . Corruption Blocked . | . . . Effects 1 | . . 1 Message Errors 1 | . . 1 Overload Shots . | . . . Overflow Damage . | . . . Projectiles . | . . . Explosions . | . . . Melee . | . . . Knockbacks . | . . . Impact . | . . . Kinetic . | . . . Secondary . | . . . Self-Inflicted Damage . | . . . Shots . | . . . Rammed 1 | . 1 . Targets Rammed 1 | . 1 . Kicked . | . . . Crushed . | . . . Highest Temperature 15 | . 15 . Average Temperature 9 | . 9 . Received Heat Transfer 212 | . 132 80 Siege Activations . | . . . Martial Activations . | . . . Shielding Activations . | . . . Robots Disrupted . | . . . Combat Hostiles . | . . . Robots Corrupted . | . . . Combat Hostiles . | . . . Parts Fried . | . . . Impact Corruptions . | . . . Robots Melted . | . . . Combat Hostiles . | . . . Parts Melted . | . . . Heat Transferred . | . . . Parts Sabotaged . | . . . Parts Stolen . | . . . Parts Stripped . | . . . Power Chain Reactions . | . . . Alert | -11 -10 -10 ------- Run | Yrd Mat Min Maximum Alert Level . | . . . Low Security (%) 100 | 100 100 100 Level 1 . | . . . Level 2 . | . . . Level 3 . | . . . Level 4 . | . . . Level 5 . | . . . High Security . | . . . Max Security . | . . . Peak Influence 150 | 10 150 25 Initial 25 | . . 25 Average 60 | 1 82 10 Influence Increases 301 | 15 286 . Destroy 0b10 Robot/C 180 | . 180 . Destroy 0b10 Robot/NC 40 | 15 25 . Destroy Leader 42 | . 42 . Successful Hack 9 | . 9 . Select Force Hacks 30 | . 30 . Influence Decreases 301 | 15 220 66 Entered New Map 41 | . . 41 Time Decay 255 | 15 220 20 Lost Ally 5 | . . 5 Squads Dispatched 2 | . 2 . Investigation 2 | . 2 . Extermination . | . . . Reinforcement . | . . . Assault . | . . . Garrison . | . . . Intercept . | . . . Searches Triggered . | . . . Construction Impeded . | . . . Haulers Reinforced . | . . . Active Scanning Responses . | . . . Cargo Convoy Interrupts . | . . . Stealth | -11 -10 -10 --------- Run | Yrd Mat Min Distress Signals 1 | . 1 . Communications Jammed . | . . . Distress Signals . | . . . Times Spotted 31 | . 17 14 Peak Tracking Total 12 | . 4 12 Tactical Retreats . | . . . Traps | -11 -10 -10 ------- Run | Yrd Mat Min Traps Triggered . | . . . Indirectly . | . . . Trap Hack Attempts . | . . . Triggered . | . . . Disarmed . | . . . Reprogrammed . | . . . Reused . | . . . Traps Extracted . | . . . Installed . | . . . Triggered . | . . . Machines | -11 -10 -10 ---------- Run | Yrd Mat Min Machines Disabled . | . . . Max in Single Turn . | . . . Machines Repaired . | . . . Machines Dismantled . | . . . Machines Sabotaged . | . . . Overloaded Fab Kills . | . . . Hacking | -11 -10 -10 --------- Run | Yrd Mat Min Machines Accessed 6 | . 6 . Terminals 5 | . 5 . Fabricators . | . . . Repair Stations . | . . . Recycling Units 1 | . 1 . Scanalyzers . | . . . Garrison Access . | . . . Total Hacks 14 | . 14 . Successful 5 | . 5 . Failed 9 | . 9 . Catastrophic 2 | . 2 . Database Lockouts . | . . . Manual 11 | . 11 . Terminals 13 | . 13 . Fabricators . | . . . Repair Stations . | . . . Recycling Units 1 | . 1 . Scanalyzers . | . . . Garrison Access . | . . . Terminal Hacks 1 | . 1 . Hauler Manifests 1 | . 1 . Fabricator Hacks . | . . . Repair Station Hacks . | . . . Recycling Unit Hacks . | . . . Scanalyzer . | . . . Garrison Access Hacks . | . . . Unauthorized Hacks 4 | . 4 . Terminals 3 | . 3 . Assimilate 1 | . 1 . Botnet 2 | . 2 . Fabricators . | . . . Repair Stations . | . . . Recycling Units 1 | . 1 . Tunnel 1 | . 1 . Scanalyzers . | . . . Garrison Access . | . . . Data Cores Recovered . | . . . Used . | . . . Hacking Detections 5 | . 5 . Full Trace Events 1 | . 1 . Feedback Events . | . . . Feedback Blocked . | . . . Robot Schematics Acquired . | . . . Robots Built . | . . . Authchips . | . . . Time . | . . . Total Robot Build Rating . | . . . Part Schematics Acquired . | . . . Parts Built . | . . . Authchips . | . . . Time . | . . . Total Part Build Rating . | . . . Parts Repaired . | . . . Time . | . . . Parts Recycled . | . . . Recycled Matter . | . . . Retrieved Matter . | . . . Retrieved Components . | . . . Parts Scanalyzed . | . . . Part Schematics Acquired . | . . . Parts Damaged . | . . . Bothacking | -11 -10 -10 ------------ Run | Yrd Mat Min Used RIF Installer . | . . . Robots Hacked . | . . . Non-combat . | . . . Combat . | . . . Robot Hacks Applied . | . . . Relay Couplers Released . | . . . Fabnet Peak Effective % . | . . . Robots Rewired . | . . . Allies Hacked . | . . . Hacks Repelled . | . . . Allies | -11 -10 -10 -------- Run | Yrd Mat Min Total Allies 1 | . . 1 Largest Group 1 | . . 1 Highest-Rated Group 31 | . . 31 Highest-Rated Ally 31 | . . 31 Total Orders . | . . . Ally Attacks 4 | . . 4 Total Damage 43 | . . 43 Kills 1 | . . 1 Allies Corrupted . | . . . Allies Melted 1 | . . 1 Intel | -11 -10 -10 ------- Run | Yrd Mat Min Active Infowar (turns) 680 | 24 593 63 Seismic 680 | 24 593 63 Robot Analysis Total . | . . . Derelict Logs Recovered . | . . . Drone Launches . | . . . Drone Recoveries . | . . . Exploration | -11 -10 -10 ------------- Run | Yrd Mat Min Turns Passed 826 | 150 593 83 Spaces Moved 420 | 72 300 48 Core 12 | 3 . 9 Treads 408 | 69 300 39 Legs . | . . . Wheels . | . . . Hover . | . . . Flight . | . . . Fastest Speed 50 | 50 160 50 Average Speed 157 | 155 160 147 Slowest Speed 240 | 160 160 240 Overloaded Moves . | . . . Propulsion Burnouts . | . . . Robots Hopped . | . . . Potential Cave-ins . | . . . Cave-ins Triggered . | . . . Exploration Rate (%) 25 | 4 54 17 Regions Visited 2 Branch Regions 1 Pre-discovered Areas 1 | . 1 . Known Exits Taken . | . . . Unknown Exits Taken 2 | 1 1 . Scrap Searched . | . . . Spaces Dug . | . . . Terrain Destroyed . | . . . Melee . | . . . Projectile . | . . . AOE . | . . . Terrain Rammed . | . . . Walls Destroyed . | . . . Machines Disabled . | . . . Actions | -11 -10 -10 --------- Run | Yrd Mat Min Total 496 | 89 350 57 Wait 9 | . 8 1 Move 418 | 71 299 48 Hop . | . . . Pick Up 8 | 1 5 2 Fast Attach 7 | 7 . . Attach . | . . . Detach . | . . . Swap 4 | . 3 1 Drop 4 | . 1 3 Fire 45 | 10 33 2 Melee . | . . . Ram . | . . . Kick . | . . . Crush 1 | . 1 . Escape Stasis . | . . . Rewire . | . . . Trap . | . . . Miscellaneous . | . . . Route ------- -11/Scrapyard -10/Materials (discovered 3 exits: [*Mat] / [*Min x2]) -10/Mines History --------- Turn | Location | Event 11 | -11/Scrapyard | Discovered new exit (range 16) 151 | -11/Scrapyard | Entered Materials 302 | -10/Materials | Build established: Mutant 356 | -10/Materials | Discovered new exit (range 13) 485 | -10/Materials | Discovered new exit (range 6) 493 | -10/Materials | Discovered new exit (range 15) 744 | -10/Materials | Entered Mines 747 | -10/Mines | Received a Mining Laser from a helpful Derelict 770 | -10/Mines | Assembled infested the area 775 | -10/Mines | Assisted by a Guerilla fighting off Assembled 818 | -10/Mines | Core integrity fell below 50% 821 | -10/Mines | Released all parts (4) 826 | -10/Mines | Core integrity fell below 20% 827 | -10/Mines | Destroyed by as-41703 with Assembled Rifle Last Messages --------------- 00792_ as-29739 suffers critical hit (Destroy). 00792_ as-29739 destroyed. 00792_ VS-JCC(h) suffers critical hit (Burn). 00795_ VS-JCC(h) critical meltdown. 00801_ ZX-SUD(g) destroyed. 00807_ Lgt. Treads destroyed. 00807_ System corrupted by crushing effect (+2). 00809_ Ion Engine destroyed. 00809_ System corrupted by crushing effect (+5). 00813_ %SCZL>M4NMAG, AS<5KQ N>ISG>L YBRC 00813_ Targeting Computer destroyed. 00813_ System corrupted by crushing effect (+2). 00816_ Dropped Ion Engine. 00816_ Dropped Seismic Detector. 00821_ Released Lrg. Storage Unit. 00821_ Released Lgt. Treads. 00821_ Released Assault Rifle. 00823_ Dropped Mining Laser. 00823_ Acquired 7 matter. 00825_ Acquired Bore Cannon. Map ----- +----------------------------------------------------+ | | | | | | | | | | | | | ????????????????????????????????????????????????? | | ????????######??????????????????????????????????? | | ???????## ##?????????????????????????????????? | | ???????# #?????????????????????????????????? | | ???????# #??###????????????????????????????? | | ???????# #??## ##??????????????????????????? | | ??????## #???# #??????????????????????????? | | ??????# #???? ##?????????????????????????? | | ??????# ####?? ##????????????????????????? | | ??????# ##?# ##???????????????????????? | | ??????## ### ##??????????????????????? | | ???????## ## #??###?????????????????? | | ????????## #?## ####??????????????? | | ?????????## ##?# ##?????????????? | | ??????????####### ##??# a #?????????????? | | ????????????????## ###??## """!#?????????????? | | ?????????????????### ###### """*##????????????? | | ???????????????????# a """ [###??????????? | | ???????????????????# =aa"""=![ ##?????????? | | ???????????????????#### @!aaa a ][ ###???????? | | ??????????????????????# =%a a a ;#???????? | | ??????????????????????# # a| #???????? | | ??????????????????????## ## ## #???????? | | ???????????????????????###### ### ##???????? | | ????????????????????????????# #?## #????????? | | ????????????????????????????# $#???# #????????? | | ????????????????????????????# #???? #???????? | | ???????????????????????????? #????# ??????? | | ???????????????????????????? ?????# ?????? | | ???????????????????????????? ??????### ????? | | ??????????????????????????? "?????????# ????? | | ??????????????????????????? ?????????##????? | | ??????????????????????????? ???????????????? | | ???????????????????????????# ???????????????? | | ???????????????????????????## ???????????????? | | ????????????????????????????? ????????????????? | | ????????????????????????????? ????????????????? | | ????????????????????????????????????????????????? | | ????????????????????????????????????????????????? | | ????????????????????????????????????????????????? | | ????????????????????????????????????????????????? | | ????????????????????????????????????????????????? | | ????????????????????????????????????????????????? | | ????????????????????????????????????????????????? | +----------------------------------------------------+ Best States ------------- Heat Dissipation 25 Energy Generation 10 Energy Capacity 250 Matter Stores 300 Matter Capacity 300 Sight Range 16 Terrain Scan Density 10 Evasion (%) 40 Targeting Accuracy 5 Recoil Reduction 2 Item Schematics ----------------- None Robot Schematics ------------------ None Fabricated ------------ Nothing Repaired ---------- Nothing Alien Tech Used ----------------- None Achievements -------------- None Challenges ------------ None Game ------ Seed TerrabombChromionPick Manual? 0 Play Time 00:11:42 Cumulative 183.0 hours Start 2025.05.26 @ 20:38:28 End 2025.05.26 @ 20:48:12 Sessions 1 Manual Loads 0 Difficulty Rogue Special Mode None Game No. 99 Rogue 99 Adventurer 0 Explorer 0 Win Type - Total 12 Types 5/0/4/1/2/0/0/0/0/0 Lore% 77 Gallery% 64 Achievement% 64 Wizard Run 0 Options --------- Layout 1 ASCII 0 Keyboard 0 Movement Numpad Keybinds 0 Fullscreen 1 Font 24/Smallcaps Map View 50x35 Zoom Use 0% Tactical HUD 1 Map Filters NONE Filters NONE Steam 1 RUN: b9030572-4b3b-46fa-b30c-198277b09ab1